Cogmind - Beta 11.1 @@@ ROGUE MODE // 2022.07.16 @ 12:18:06 Player: tkc Result: Destroyed by 8R-AWN with 8R-AWN's Boregun Performance ------------- Evolutions (0) 0 Regions Visited (3) 600 Robots Destroyed (43) 215 Value Destroyed (999) 999 Prototype IDs (3) 60 Alien Tech Used (0) 0 Bonus (292) 292 TOTAL SCORE: 2166 Bonus ------- Follower Combat Kills 166 Aligned with FarCom 300 Friendly Fire -174 Cogmind --------- Core Integrity 0/250 Matter 292/300 Energy 89/100 System Corruption 2% Temperature Cool (2) Movement Walking (90) Location -10/Exiles Parts ------- > --- POWER (1) -------- (None) > --- PROPULSION (2) --- Potential Leg Potential Leg > --- UTILITY (2) ------ Large Storage Unit Core Shielding > --- WEAPON (2) ------- (None) > --- INVENTORY (15) --- Nuclear Core Light Nuclear Core Fission Core Compact Wheel Compact Wheel Medium Storage Unit Small Matter Pod (50) Weight Redist. System Light Armor Plating Hacking Suite Light Assault Rifle Heavy Assault Rifle Heavy Assault Rifle Light Cannon Peak State ------------ > --- POWER ------------ Light Ion Engine > --- PROPULSION ------- Potential Leg Potential Leg > --- UTILITY ---------- Large Storage Unit Core Shielding > --- WEAPON ----------- YOLO Cannon > --- INVENTORY -------- Light Ion Engine Nuclear Core Light Nuclear Core Fission Core Light Treads Compact Wheel Compact Wheel Medium Storage Unit Small Matter Pod Weight Redist. System Light Armor Plating Hacking Suite Light Assault Rifle Heavy Assault Rifle Light Cannon [Rating: 45] Favorites ----------- Power Light Ion Engine Engine Light Ion Engine Propulsion Light Treads Treads Light Treads Leg Potential Leg Wheel Compact Wheel Utility Core Shielding Device Trap Reconfigurator Storage Large Storage Unit Protection Core Shielding Weapon Heavy Assault Rifle Energy Cannon YOLO Cannon Ballistic Gun Heavy Assault Rifle Build | -11 -10 -10 -10 ------- Run | Scr Mat Min Exi Slots Evolved . | . . . . Power . | . . . . Propulsion . | . . . . Utility . | . . . . Weapon . | . . . . Parts Attached 27 | 9 11 . 7 Power 5 | 1 2 . 2 Engine 5 | 1 2 . 2 Core . | . . . . Reactor . | . . . . Propulsion 8 | 4 2 . 2 Treads 3 | 2 1 . . Leg 2 | . . . 2 Wheel 3 | 2 1 . . Hover . | . . . . Flight . | . . . . Utility 7 | 2 3 . 2 Device 1 | . . . 1 Storage 4 | 2 2 . . Processor . | . . . . Hackware . | . . . . Protection 2 | . 1 . 1 Artifact . | . . . . Weapon 7 | 2 4 . 1 Energy Gun . | . . . . Energy Cannon 1 | . . . 1 Ballistic Gun 6 | 2 4 . . Ballistic Cannon . | . . . . Launcher . | . . . . Special Weapon . | . . . . Impact Weapon . | . . . . Slashing Weapon . | . . . . Piercing Weapon . | . . . . Special Melee Weapon . | . . . . Unidentified Prototypes 3 | . . . 3 Parts Lost 3 | . . . 3 Power 2 | . . . 2 Propulsion . | . . . . Utility . | . . . . Weapon 1 | . . . 1 Highest Loss Streak 3 | . . . 3 To Critical Strikes 1 | . . . 1 Average Slot Usage (%) 98 | . 100 100 91 Engine 13 | . 14 14 13 Treads 12 | . 14 14 6 Leg 2 | . . . 14 Wheel 12 | . 14 14 7 Storage 16 | . 18 14 14 Protection 11 | . 9 14 13 Energy Cannon 1 | . . . 6 Ballistic Gun 25 | . 28 28 14 Naked Turns . | . . . . Heaviest Build 42 | 17 30 30 42 Greatest Support 60 | 40 20 16 60 Greatest Overweight (x) 1 | . 1 1 1 Average Overweight (x) . | . . 1 . Largest Inventory Capacity 15 | 8 15 15 15 Average Capacity 12 | 7 11 15 15 Most Carried 15 | 8 11 13 15 Average Carried 10 | 5 9 12 14 Final Capacity 15 | 8 15 15 15 Final Carried 14 | 8 11 13 14 Class Distribution -------------------- 96% | Mutant 3% | Scavenger-Mutant Dominant Class ---------------- Mutant | -10/Materials Mutant | -10/Mines Mutant | -10/Exiles Resources | -11 -10 -10 -10 ----------- Run | Scr Mat Min Exi Matter Collected 959 | 391 459 49 60 Remotely . | . . . . Salvage Created 1272 | 207 578 126 361 Parts 98 | 21 49 12 16 Haulers Intercepted 1 | . 1 . . Recyclers Shooed . | . . . . Parts Field Recycled . | . . . . Retrieved Matter . | . . . . Parts Self-Destructed . | . . . . Prevented . | . . . . Kills | -11 -10 -10 -10 ------- Run | Scr Mat Min Exi Combat Hostiles Destroyed 28 | . 13 4 11 Guns 17 | . 13 4 . Cannons 2 | . . . 2 AOE 9 | . . . 9 Classes Destroyed 12 | 3 6 . 3 Worker 3 | 2 1 . . Builder 3 | . 3 . . Tunneler 4 | 4 . . . Hauler 1 | . 1 . . Recycler 1 | 1 . . . Operator 1 | . 1 . . Watcher 2 | . 2 . . Swarmer 8 | . 6 2 . Grunt 16 | . 7 2 7 Duelist 1 | . . . 1 Hunter 2 | . . . 2 Programmer 1 | . . . 1 Best Kill Streak 8 | 4 5 2 8 Combat Bots Only 8 | . 5 2 8 Max Kills in Single Turn 4 | 1 1 1 4 Gunslinging . | . . . . Exploded 3 | . . . 3 Melee . | . . . . Uniques/NPCs Destroyed . | . . . . Combat | -11 -10 -10 -10 -------- Run | Scr Mat Min Exi Damage Taken 1384 | . 299 123 962 Core 254 | . 46 44 164 Absorbed by Shields . | . . . . Redirected to Shielding 37 | . . 9 28 Core Remaining (%) 100 | 100 . . . Volleys Fired 88 | 10 63 6 9 Largest 2 | 2 2 2 1 Hottest 100 | 40 46 46 100 Shots Fired 168 | 20 127 12 9 Gun 159 | 20 127 12 . Cannon 9 | . . . 9 Launcher . | . . . . Special . | . . . . Kinetic 159 | 20 127 12 . Thermal 9 | . . . 9 Explosive . | . . . . Electromagnetic . | . . . . Robot Hit Streak 13 | 3 13 6 1 Robot Miss Streak 5 | 1 5 2 5 Penetration Max . | . . . . Secondary Targets 4 | . 3 1 . Max Gunslinging Chain 1 | . 1 1 . Shots Hit Robots 98 | 11 76 9 2 Core Hits 56 | 8 32 5 11 Critical Kills . | . . . . Critical Parts Destroyed . | . . . . Critical Strikes . | . . . . Melee Attacks . | . . . . Impact . | . . . . Slashing . | . . . . Piercing . | . . . . Sneak Attacks . | . . . . Combat Hostiles . | . . . . Follow-up Attacks . | . . . . Damage Inflicted 3061 | 148 1033 141 1739 Guns 1322 | 148 1033 141 . Cannons 344 | . . . 344 Explosions 1395 | . . . 1395 Melee . | . . . . Ramming . | . . . . Kinetic 1322 | 148 1033 141 . Thermal 1739 | . . . 1739 Explosive . | . . . . Electromagnetic . | . . . . Impact . | . . . . Slashing . | . . . . Piercing . | . . . . Highest Corruption 2 | . 1 1 2 Average Corruption 1 | . 1 1 1 Corruption Purged . | . . . . Corruption Blocked . | . . . . Effects 17 | . 4 9 4 Message Errors 5 | . . 3 2 Matter Fused 7 | . 3 2 2 Heat Flow Errors 1 | . . 1 . Data Loss (minor) 1 | . . 1 . Data Loss (major) 2 | . . 2 . Misfires 1 | . 1 . . Overload Shots . | . . . . Overflow Damage 166 | . . . 166 Projectiles 130 | . . . 130 Explosions 36 | . . . 36 Melee . | . . . . Knockbacks . | . . . . Impact . | . . . . Kinetic . | . . . . Secondary . | . . . . Self-Inflicted Damage . | . . . . Shots . | . . . . Rammed . | . . . . Targets Rammed . | . . . . Kicked . | . . . . Crushed . | . . . . Highest Temperature 265 | . 22 265 70 Average Temperature 39 | . 9 94 23 Received Heat Transfer 225 | . 111 66 48 Siege Activations . | . . . . Robots Corrupted . | . . . . Combat Hostiles . | . . . . Parts Fried . | . . . . Impact Corruptions . | . . . . Robots Melted . | . . . . Combat Hostiles . | . . . . Parts Melted 2 | . . . 2 Heat Transferred 2240 | . . . 2240 Parts Sabotaged . | . . . . Parts Stolen . | . . . . Parts Stripped . | . . . . Power Chain Reactions . | . . . . Missiles Intercepted . | . . . . Alert | -11 -10 -10 -10 ------- Run | Scr Mat Min Exi Peak Influence 384 | 35 384 143 . Initial 22 | . 22 9 . Average 128 | 16 159 91 . Maximum Alert Level 1 | . 1 . . Low Security (%) 84 | 100 75 100 . Level 1 15 | . 25 . . Level 2 . | . . . . Level 3 . | . . . . Level 4 . | . . . . Level 5 . | . . . . High Security . | . . . . Max Security . | . . . . Squads Dispatched 3 | . 3 . . Investigation . | . . . . Extermination . | . . . . Reinforcement 3 | . 3 . . Assault . | . . . . Garrison . | . . . . Intercept . | . . . . Searches Triggered . | . . . . Construction Impeded . | . . . . Haulers Reinforced . | . . . . Active Scanning Responses . | . . . . Cargo Convoy Interrupts . | . . . . Stealth | -11 -10 -10 -10 --------- Run | Scr Mat Min Exi Distress Signals 2 | . 2 . . Communications Jammed . | . . . . Distress Signals . | . . . . Times Spotted 71 | . 28 7 36 Peak Tracking Total 12 | . 7 3 12 Tactical Retreats 2 | . . . 2 Traps | -11 -10 -10 -10 ------- Run | Scr Mat Min Exi Traps Triggered 1 | . 1 . . Indirectly . | . . . . Trap Hack Attempts . | . . . . Triggered . | . . . . Disarmed . | . . . . Reprogrammed . | . . . . Reused . | . . . . Traps Extracted . | . . . . Installed . | . . . . Triggered . | . . . . Exploded 1 | . . . 1 Machines | -11 -10 -10 -10 ---------- Run | Scr Mat Min Exi Machines Disabled 8 | . 2 1 5 Max in Single Turn 1 | . 1 1 1 Machines Sabotaged . | . . . . Garrisons Compromised . | . . . . Overloaded Fab Kills . | . . . . Hacking | -11 -10 -10 -10 --------- Run | Scr Mat Min Exi Machines Accessed 12 | . 7 1 4 Terminals 6 | . 5 1 . Fabricators . | . . . . Repair Stations . | . . . . Recycling Units 2 | . 2 . . Scanalyzers . | . . . . Garrison Access . | . . . . Total Hacks 70 | . 19 2 49 Successful 61 | . 10 2 49 Failed 9 | . 9 . . Catastrophic . | . . . . Database Lockouts . | . . . . Manual 18 | . 12 1 5 Terminals 19 | . 17 2 . Fabricators . | . . . . Repair Stations . | . . . . Recycling Units 2 | . 2 . . Scanalyzers . | . . . . Garrison Access . | . . . . Terminal Hacks 54 | . 4 1 49 Record 49 | . . . 49 Terminal Index 1 | . 1 . . Alert Level 2 | . 2 . . Zone Layout 2 | . 1 1 . Fabricator Hacks . | . . . . Repair Station Hacks . | . . . . Recycling Unit Hacks 2 | . 2 . . Report Inventory 2 | . 2 . . Scanalyzer . | . . . . Garrison Access Hacks . | . . . . Unauthorized Hacks 5 | . 4 1 . Terminals 5 | . 4 1 . Botnet 5 | . 4 1 . Fabricators . | . . . . Repair Stations . | . . . . Recycling Units . | . . . . Scanalyzers . | . . . . Garrison Access . | . . . . Data Cores Recovered . | . . . . Used . | . . . . Hacking Detections 6 | . 5 1 . Full Trace Events 1 | . 1 . . Feedback Events . | . . . . Feedback Blocked . | . . . . Robot Schematics Acquired . | . . . . Robots Built . | . . . . Authchips . | . . . . Time . | . . . . Total Robot Build Rating . | . . . . Part Schematics Acquired . | . . . . Parts Built . | . . . . Authchips . | . . . . Time . | . . . . Total Part Build Rating . | . . . . Parts Repaired . | . . . . Time . | . . . . Parts Recycled . | . . . . Recycled Matter . | . . . . Retrieved Matter . | . . . . Retrieved Components . | . . . . Parts Scanalyzed . | . . . . Part Schematics Acquired . | . . . . Parts Damaged . | . . . . Bothacking | -11 -10 -10 -10 ------------ Run | Scr Mat Min Exi Used RIF Installer . | . . . . Robots Hacked . | . . . . Non-combat . | . . . . Combat . | . . . . Robot Hacks Applied . | . . . . Relay Couplers Released . | . . . . Fabnet Peak Effective % . | . . . . Robots Rewired . | . . . . Allies Hacked . | . . . . Hacks Repelled . | . . . . Allies | -11 -10 -10 -10 -------- Run | Scr Mat Min Exi Total Allies 6 | . . 6 . Largest Group 5 | . . 5 5 Highest-Rated Group 81 | . . 81 81 Highest-Rated Ally 31 | . . 31 31 Total Orders . | . . . . Ally Attacks 25 | . . 9 16 Total Damage 352 | . . 151 201 Kills 7 | . . 3 4 Allies Corrupted . | . . . . Allies Melted . | . . . . Intel | -11 -10 -10 -10 ------- Run | Scr Mat Min Exi Robot Analysis Total . | . . . . Derelict Logs Recovered 1 | . . 1 . Drone Launches . | . . . . Drone Recoveries . | . . . . Exploration | -11 -10 -10 -10 ------------- Run | Scr Mat Min Exi Turns Passed 3226 | 167 1676 886 497 Spaces Moved 2012 | 81 851 649 431 Core 3 | 3 . . . Treads 413 | 60 353 . . Legs 220 | . . . 220 Wheels 1376 | 18 498 649 211 Hover . | . . . . Flight . | . . . . Fastest Speed 50 | 50 100 115 90 Average Speed 132 | 142 161 115 102 Slowest Speed 240 | 160 240 115 115 Overloaded Moves . | . . . . Propulsion Burnouts . | . . . . Robots Hopped . | . . . . Cave-ins Triggered . | . . . . Exploration Rate (%) 65 | 6 97 92 67 Regions Visited 3 Branch Regions 2 Pre-discovered Areas 1 | . . . 1 Known Exits Taken . | . . . . Unknown Exits Taken 3 | 1 1 1 . Scrap Searched . | . . . . Spaces Dug . | . . . . Terrain Destroyed 40 | . . . 40 Melee . | . . . . Projectile 1 | . . . 1 AOE 39 | . . . 39 Terrain Rammed . | . . . . Walls Destroyed . | . . . . Machines Disabled . | . . . . Actions | -11 -10 -10 -10 --------- Run | Scr Mat Min Exi Total 2386 | 109 1040 776 461 Wait 218 | . 95 120 3 Move 2009 | 80 850 648 431 Hop . | . . . . Pick Up 23 | 9 8 2 4 Fast Attach 15 | 7 4 . 4 Attach 1 | . . . 1 Detach . | . . . . Swap 11 | 2 7 . 2 Drop 21 | 1 13 . 7 Fire 88 | 10 63 6 9 Melee . | . . . . Ram . | . . . . Kick . | . . . . Crush . | . . . . Escape Stasis . | . . . . Rewire . | . . . . Trap . | . . . . Miscellaneous . | . . . . Route ------- -11/Scrapyard -10/Materials (discovered 5 exits: [*Mat x3] / *Min x2) -10/Mines (discovered 3 exits: [*Mat x2] / *Exi) -10/Exiles (discovered 1 exit: [*Min]) History --------- Turn | Location | Event 17 | -11/Scrapyard | Discovered new exit (range 16) 168 | -11/Scrapyard | Entered Materials 651 | -10/Materials | Discovered new exit (range 11) 732 | -10/Materials | Build established: Mutant 819 | -10/Materials | Discovered new exit (range 7) 882 | -10/Materials | Discovered new exit (range 9) 1150 | -10/Materials | Discovered new exit (range 16) 1788 | -10/Materials | Discovered new exit (range 8) 1844 | -10/Materials | Entered Mines 1846 | -10/Mines | Discovered new exit (range 13) 1853 | -10/Mines | Met a Derelict bent on vengeance 1857 | -10/Mines | Received a Mining Laser from a helpful Derelict 2084 | -10/Mines | Deemed a non-threat by the Exiles lab entrance 2084 | -10/Mines | Discovered new exit (range 5) 2135 | -10/Mines | Assisted by bots powering up and referring to "LRC-V3" 2166 | -10/Mines | Learned 2 Materials zone layouts 2473 | -10/Mines | Discovered new exit (range 7) 2730 | -10/Mines | Entered Exiles 2730 | -10/Exiles | Accompanied by 5 allies 2760 | -10/Exiles | Led the pair of lost Derelicts to a safe place 2769 | -10/Exiles | Discovered new exit (range 14) 2797 | -10/Exiles | Met 8R-AWN 2821 | -10/Exiles | Met EX-HEX 2902 | -10/Exiles | Met EX-BIN 2919 | -10/Exiles | Aligned with FarCom system 2920 | -10/Exiles | Given EX-Vault access code 2965 | -10/Exiles | Opened EX-Vault 2977 | -10/Exiles | Found Prototype Leg 2978 | -10/Exiles | Identified Potential Leg 2982 | -10/Exiles | Found Potential Leg 2989 | -10/Exiles | Found Prototype Device 2989 | -10/Exiles | Identified Trap Reconfigurator 2997 | -10/Exiles | Found Prototype Energy Cannon 2997 | -10/Exiles | Identified YOLO Cannon 3019 | -10/Exiles | Exiles lab attacked by MAIN.C 3091 | -10/Exiles | Learned location of Zion (-6) 3172 | -10/Exiles | Core integrity fell below 50% 3190 | -10/Exiles | Attacked by the Exiles 3199 | -10/Exiles | Core integrity fell below 20% 3224 | -10/Exiles | Destroyed 8 combat bots 3227 | -10/Exiles | Destroyed by 8R-AWN with 8R-AWN's Boregun Last Messages --------------- 03214_ Penetrated by HV Slug. 03214_ Critical hit (Destroy). 03214_ YOLO Cannon destroyed. 03214_ HV Slug penetrates Machine. 03216_ HV Slug penetrates 5L-KAT. 03216_ 5L-KAT destroyed. 03216_ HV Slug penetrates Wall. 03217_ Slug penetrates DAS Turret. 03217_ Machine disabled. 03217_ Slug penetrates DAS Turret. 03218_ System corrupted: Matter fused (-7). 03221_ HV Slug penetrates Machine. 03221_ Penetrated by HV Slug. 03223_ HV Slug penetrates Wall. 03223_ Machine disabled. 03223_ Penetrated by HV Slug. 03223_ HV Slug penetrates Machine. 03225_ Penetrated by HV Slug. 03225_ HV Slug penetrates Wall. 03227_ Penetrated by HV Slug. Map ----- +----------------------------------------------------+ | ?????????????????????????????????????????????????? | | ?????????????????????????????????????????????????? | | ?????????????????????????????????????????????????? | | ?????????????????????????????????????????????????? | | ?????????????????????????????????????????????????# | | ?????????????????????????????????????????????????# | | ?????????????????????????????????????????????????# | | ?????????????????????????????????????????????????# | | ?????????????????????????????????????????????????# | | ?????????????????????????????????????????????????# | | ?????????????????????????????????????????????????# | | ?????????????????????????????????????????????????# | | ????????????????????????????????????????????????? | | ????????????????????????????????????????????????"" | | ????????????????????????????????????????????????"" | | ????????????????????????######???????????????????? | | ????????????????????????#!!! "???????????????????? | | ????????????? #?????????# "???????????????????? | | ???????????? ???????# "#??????????????????? | | ???????????? ?????## ""#??????????########? | | ???????????? #???#" ""???????????# """#? | | ??????????? ?##" "????????????#"" """#? | | ??????????? #"" #????????????#"" #? | | ?????????????# #????????????#"" #? | | ????????????????# ##???????????#"" "#? | | ?????????????????## @ "#???????????# ""#? | | ?????????????????#" g ###?????????#"" ""#? | | ????????????????""" %* ###???????### ###? | | ???????????? "### ;#####???### ###? | | ???????????? ???## ""#####X# #"## | | ???????????? ?????#" """ | | ????????????!""""""??????#"# % "" | | ??????????????#?##???????#### " | | ????????????????????????????### | | ??????????????????????????????### | | ????????????????????????????????## * | | ?????????????????????????????????## %! | | ??????????????????????????????????##" % | | ???????????????????????????????????#"" % | | ??????????????????????????????????##" | | ??????????????????????????????????#"" | | ?????????????????????????????????##" | | ?????????????????????????????????#""" | | ?????????????????????????????????#""" * | | ?????????????????????????????????#"" = | | ?????????????????????????????????#""" ! | | ?????????????????????????????????#"" | | ?????????????????????????????????##"" | | ??????????????????????????????????#"""" | | ??????????????????????????????????## | +----------------------------------------------------+ Best States ------------- Heat Dissipation 25 Energy Generation 10 Energy Capacity 125 Matter Stores 300 Matter Capacity 300 Sight Range 16 Terrain Scan Density 10 Core Shielding 20 Evasion (%) 57 Recoil Reduction 2 Item Schematics ----------------- None Robot Schematics ------------------ None Fabricated ------------ Nothing Alien Tech Used ----------------- None Achievements -------------- None Challenges ------------ None Game ------ Seed MissileUltimatePit Manual? 0 Play Time 00:31:47 Cumulative 62.8 hours Start 2022.07.16 @ 11:47:10 End 2022.07.16 @ 12:18:06 Sessions 1 Manual Loads 0 Difficulty Rogue Special Mode None Game No. 42 Rogue 41 Adventurer 0 Explorer 1 Win Type - Total 0 Types 0/0/0/0/0/0/0/0/0 Lore% 20 Gallery% 31 Achievement% 23 Wizard Run 0 Options --------- ASCII 0 Keyboard 0 Movement Mouse Keybinds 0 Fullscreen 1 Font 18/X11 Map View 76x50 Tactical HUD 1 Map Filters NONE Filters NONE Steam 1 RUN: 90a71d49-bd2c-47b7-b2f4-81d65c8e04a0